Cogmind - Beta 11.1 @@@ ROGUE MODE // 2022.06.03 @ 15:21:35 Player: Jamuson Result: Destroyed by as-29325 with Assembled Heavy Rifle Performance ------------- Evolutions (0) 0 Regions Visited (2) 400 Robots Destroyed (17) 85 Value Destroyed (473) 473 Prototype IDs (0) 0 Alien Tech Used (0) 0 Bonus (0) 0 TOTAL SCORE: 958 Bonus ------- None Cogmind --------- Core Integrity 0/250 Matter 151/300 Energy 98/100 System Corruption 0% Temperature Cool (0) Movement Core (50) Location -10/Mines Parts ------- > --- POWER (1) -------- (None) > --- PROPULSION (2) --- (None) > --- UTILITY (2) ------ (None) > --- WEAPON (2) ------- (None) > --- INVENTORY (5) ---- Small Storage Unit Large Storage Unit Small Laser Peak State ------------ > --- POWER ------------ Light Nuclear Core > --- PROPULSION ------- Wheel Compact Wheel > --- UTILITY ---------- Heat Sink Large Storage Unit > --- WEAPON ----------- Heavy Assault Rifle Heavy Assault Rifle > --- INVENTORY -------- Light Ion Engine Wheel Small Storage Unit Small Laser Grenade Launcher [Rating: 11] Favorites ----------- Power Ion Engine Engine Ion Engine Power Core Light Nuclear Core Propulsion Compact Wheel Leg Aluminum Leg Wheel Compact Wheel Utility Large Storage Unit Device Heat Sink Storage Large Storage Unit Weapon Heavy Assault Rifle Energy Gun Small Laser Ballistic Gun Heavy Assault Rifle Launcher Grenade Launcher Build | -11 -10 -10 ------- Run | Scr Mat Min Slots Evolved . | . . . Power . | . . . Propulsion . | . . . Utility . | . . . Weapon . | . . . Parts Attached 24 | . 18 6 Power 4 | . 2 2 Engine 3 | . 2 1 Core 1 | . . 1 Reactor . | . . . Propulsion 8 | . 7 1 Treads . | . . . Leg 1 | . 1 . Wheel 7 | . 6 1 Hover . | . . . Flight . | . . . Utility 2 | . 2 . Device 1 | . 1 . Storage 1 | . 1 . Processor . | . . . Hackware . | . . . Protection . | . . . Artifact . | . . . Weapon 10 | . 7 3 Energy Gun 1 | . 1 . Energy Cannon . | . . . Ballistic Gun 7 | . 5 2 Ballistic Cannon . | . . . Launcher 2 | . 1 1 Special Weapon . | . . . Impact Weapon . | . . . Slashing Weapon . | . . . Piercing Weapon . | . . . Special Melee Weapon . | . . . Unidentified Prototypes . | . . . Parts Lost 11 | . 1 10 Power 2 | . . 2 Propulsion 4 | . 1 3 Utility 1 | . . 1 Weapon 4 | . . 4 Highest Loss Streak 4 | . 1 4 To Critical Strikes . | . . . Average Slot Usage (%) 85 | . 90 79 Engine 10 | . 13 6 Core 1 | . . 3 Leg 7 | . 11 . Wheel 15 | . 11 21 Device 8 | . 9 7 Storage 14 | . 14 14 Energy Gun 9 | . 14 . Ballistic Gun 16 | . 12 22 Launcher 1 | . . 3 Naked Turns 6 | . . 6 Heaviest Build 32 | 12 32 32 Greatest Support 26 | 20 26 26 Greatest Overweight (x) 2 | . 2 2 Average Overweight (x) . | . . 1 Largest Inventory Capacity 15 | . 15 15 Average Capacity 12 | . 11 14 Most Carried 8 | . 8 7 Average Carried 5 | . 6 3 Final Capacity 15 | 8 15 5 Final Carried 7 | 6 7 3 Class Distribution -------------------- 100% | Mutant Dominant Class ---------------- Mutant | -10/Materials Mutant | -10/Mines Resources | -11 -10 -10 ----------- Run | Scr Mat Min Matter Collected 458 | 194 166 98 Remotely . | . . . Salvage Created 528 | . 430 98 Parts 39 | . 33 6 Haulers Intercepted 1 | . 1 . Recyclers Shooed . | . . . Parts Field Recycled . | . . . Retrieved Matter . | . . . Parts Self-Destructed . | . . . Prevented . | . . . Kills | -11 -10 -10 ------- Run | Scr Mat Min Combat Hostiles Destroyed 14 | . 10 4 Guns 11 | . 8 3 AOE 3 | . 2 1 Classes Destroyed 7 | . 5 2 Worker 1 | . 1 . Hauler 1 | . 1 . Watcher 2 | . 2 . Swarmer 3 | . 3 . Grunt 9 | . 7 2 Demolisher 1 | . . 1 Assembled 1 | . . 1 Best Kill Streak 4 | . 4 2 Combat Bots Only 3 | . 3 2 Max Kills in Single Turn 2 | . 2 1 Gunslinging . | . . . Exploded 1 | . 1 1 Melee . | . . . Uniques/NPCs Destroyed . | . . . Combat | -11 -10 -10 -------- Run | Scr Mat Min Damage Taken 1246 | . 563 683 Core 261 | . 158 103 Absorbed by Shields . | . . . Core Remaining (%) 100 | 100 . . Volleys Fired 54 | . 38 16 Largest 2 | . 2 2 Hottest 80 | . 80 53 Shots Fired 100 | . 71 29 Gun 91 | . 66 25 Cannon . | . . . Launcher 9 | . 5 4 Special . | . . . Kinetic 44 | . 19 25 Thermal 47 | . 47 . Explosive 9 | . 5 4 Electromagnetic . | . . . Robot Hit Streak 6 | . 6 6 Robot Miss Streak 3 | . 3 3 Penetration Max . | . . . Secondary Targets 1 | . 1 . Max Gunslinging Chain 1 | . 1 . Shots Hit Robots 62 | . 42 20 Core Hits 33 | . 24 9 Critical Kills . | . . . Critical Parts Destroyed . | . . . Critical Strikes . | . . . Melee Attacks . | . . . Impact . | . . . Slashing . | . . . Piercing . | . . . Sneak Attacks . | . . . Combat Hostiles . | . . . Follow-up Attacks . | . . . Damage Inflicted 1059 | . 718 341 Guns 779 | . 509 270 Cannons . | . . . Explosions 280 | . 209 71 Melee . | . . . Ramming . | . . . Kinetic 477 | . 207 270 Thermal 302 | . 302 . Explosive 280 | . 209 71 Electromagnetic . | . . . Impact . | . . . Slashing . | . . . Piercing . | . . . Highest Corruption . | . . . Average Corruption . | . . . Corruption Purged . | . . . Corruption Blocked . | . . . Overload Shots . | . . . Overflow Damage . | . . . Projectiles . | . . . Explosions . | . . . Melee . | . . . Knockbacks . | . . . Impact . | . . . Kinetic . | . . . Secondary . | . . . Self-Inflicted Damage 24 | . 18 6 Shots 2 | . 1 1 Rammed . | . . . Targets Rammed . | . . . Kicked . | . . . Crushed . | . . . Highest Temperature 252 | . 252 17 Average Temperature 114 | . 120 9 Received Heat Transfer 530 | . 282 248 Effects 4 | . 4 . Energy Bleed 1 | . 1 . Interference 3 | . 3 . Siege Activations . | . . . Robots Corrupted . | . . . Combat Hostiles . | . . . Parts Fried . | . . . Impact Corruptions . | . . . Robots Melted . | . . . Combat Hostiles . | . . . Parts Melted 3 | . 3 . Heat Transferred 700 | . 700 . Parts Sabotaged . | . . . Parts Stolen . | . . . Parts Stripped . | . . . Power Chain Reactions . | . . . Missiles Intercepted . | . . . Alert | -11 -10 -10 ------- Run | Scr Mat Min Peak Influence 404 | . 404 209 Initial 99 | . . 99 Average 179 | . 198 147 Maximum Alert Level 2 | . 2 1 Low Security (%) 73 | . 59 96 Level 1 17 | . 26 3 Level 2 8 | . 13 . Level 3 . | . . . Level 4 . | . . . Level 5 . | . . . High Security . | . . . Max Security . | . . . Squads Dispatched 3 | . 3 . Investigation 1 | . 1 . Extermination . | . . . Reinforcement 2 | . 2 . Assault . | . . . Garrison . | . . . Intercept . | . . . Searches Triggered . | . . . Construction Impeded . | . . . Haulers Reinforced . | . . . Active Scanning Responses . | . . . Cargo Convoy Interrupts . | . . . Stealth | -11 -10 -10 --------- Run | Scr Mat Min Distress Signals 1 | . 1 . Communications Jammed . | . . . Distress Signals . | . . . Times Spotted 34 | . 15 19 Peak Tracking Total 11 | . 4 11 Tactical Retreats 2 | . . 2 Traps | -11 -10 -10 ------- Run | Scr Mat Min Traps Triggered 3 | . 3 . Indirectly . | . . . Trap Hack Attempts . | . . . Triggered . | . . . Disarmed . | . . . Reprogrammed . | . . . Reused . | . . . Traps Extracted . | . . . Installed . | . . . Triggered . | . . . Machines | -11 -10 -10 ---------- Run | Scr Mat Min Machines Disabled 2 | . 2 . Max in Single Turn 1 | . 1 . Machines Sabotaged . | . . . Garrisons Compromised . | . . . Overloaded Fab Kills . | . . . Hacking | -11 -10 -10 --------- Run | Scr Mat Min Machines Accessed 2 | . 2 . Terminals 2 | . 2 . Fabricators . | . . . Repair Stations . | . . . Recycling Units . | . . . Scanalyzers . | . . . Garrison Access . | . . . Total Hacks 8 | . 8 . Successful 5 | . 5 . Failed 3 | . 3 . Catastrophic 1 | . 1 . Database Lockouts . | . . . Manual 8 | . 8 . Terminals 8 | . 8 . Fabricators . | . . . Repair Stations . | . . . Recycling Units . | . . . Scanalyzers . | . . . Garrison Access . | . . . Terminal Hacks 2 | . 2 . Robot Analysis 1 | . 1 . Terminal Index 1 | . 1 . Fabricator Hacks . | . . . Repair Station Hacks . | . . . Recycling Unit Hacks . | . . . Scanalyzer . | . . . Garrison Access Hacks . | . . . Unauthorized Hacks 3 | . 3 . Terminals 3 | . 3 . Botnet 2 | . 2 . Operators 1 | . 1 . Fabricators . | . . . Repair Stations . | . . . Recycling Units . | . . . Scanalyzers . | . . . Garrison Access . | . . . Data Cores Recovered . | . . . Used . | . . . Hacking Detections 2 | . 2 . Full Trace Events 1 | . 1 . Feedback Events . | . . . Feedback Blocked . | . . . Robot Schematics Acquired . | . . . Robots Built . | . . . Authchips . | . . . Time . | . . . Total Robot Build Rating . | . . . Part Schematics Acquired . | . . . Parts Built . | . . . Authchips . | . . . Time . | . . . Total Part Build Rating . | . . . Parts Repaired . | . . . Time . | . . . Parts Recycled . | . . . Recycled Matter . | . . . Retrieved Matter . | . . . Retrieved Components . | . . . Parts Scanalyzed . | . . . Part Schematics Acquired . | . . . Parts Damaged . | . . . Bothacking | -11 -10 -10 ------------ Run | Scr Mat Min Used RIF Installer . | . . . Robots Hacked . | . . . Non-combat . | . . . Combat . | . . . Robot Hacks Applied . | . . . Relay Couplers Released . | . . . Fabnet Peak Effective % . | . . . Robots Rewired . | . . . Allies Hacked . | . . . Hacks Repelled . | . . . Allies | -11 -10 -10 -------- Run | Scr Mat Min Total Allies . | . . . Largest Group . | . . . Highest-Rated Group . | . . . Highest-Rated Ally . | . . . Total Orders . | . . . Ally Attacks . | . . . Total Damage . | . . . Kills . | . . . Allies Corrupted . | . . . Allies Melted . | . . . Intel | -11 -10 -10 ------- Run | Scr Mat Min Robot Analysis Total 1 | . 1 . Derelict Logs Recovered 1 | . . 1 Drone Launches . | . . . Drone Recoveries . | . . . Exploration | -11 -10 -10 ------------- Run | Scr Mat Min Turns Passed 728 | . 457 271 Spaces Moved 457 | 1 247 209 Core 13 | . . 13 Treads . | . . . Legs 91 | 1 90 . Wheels 353 | . 157 196 Hover . | . . . Flight . | . . . Fastest Speed 50 | 120 105 50 Average Speed 108 | 120 114 102 Slowest Speed 190 | 120 190 110 Overloaded Moves . | . . . Propulsion Burnouts . | . . . Robots Hopped . | . . . Cave-ins Triggered . | . . . Exploration Rate (%) 31 | 1 40 53 Regions Visited 2 Branch Regions 1 Pre-discovered Areas . | . . . Known Exits Taken . | . . . Unknown Exits Taken 2 | 1 1 . Scrap Searched . | . . . Spaces Dug . | . . . Terrain Destroyed 68 | . 31 37 Melee . | . . . Projectile . | . . . AOE 68 | . 31 37 Terrain Rammed . | . . . Walls Destroyed . | . . . Machines Disabled . | . . . Actions | -11 -10 -10 --------- Run | Scr Mat Min Total 584 | . 346 238 Wait 37 | . 33 4 Move 455 | . 246 209 Hop . | . . . Pick Up 3 | . 3 . Fast Attach 12 | . 11 1 Attach 6 | . 1 5 Detach 2 | . 1 1 Swap 6 | . 6 . Drop 9 | . 7 2 Fire 54 | . 38 16 Melee . | . . . Ram . | . . . Kick . | . . . Crush . | . . . Escape Stasis . | . . . Rewire . | . . . Trap . | . . . Miscellaneous . | . . . Route ------- -11/Scrapyard -10/Materials -10/Mines History --------- Turn | Location | Event 1 | -11/Scrapyard | Discovered new exit (range 0) 1 | -11/Scrapyard | Entered Materials 235 | -10/Materials | Discovered new exit (range 15) 322 | -10/Materials | Build established: Mutant 405 | -10/Materials | Core integrity fell below 50% 458 | -10/Materials | Entered Mines 471 | -10/Mines | Core integrity fell below 20% 515 | -10/Mines | Lost 3 parts (1p2w) 532 | -10/Mines | Learned Materials stockpile data 551 | -10/Mines | Assembled infested the area 643 | -10/Mines | Lost 4 parts (2n1u1w) 729 | -10/Mines | Destroyed by as-29325 with Assembled Heavy Rifle Last Messages --------------- 00612_ Plasma Injector explodes. 00612_ Wheel destroyed. 00612_ Com. Wheel destroyed. 00614_ The unstable cave ceiling collapses. 00616_ K-01 Serf collects debris. 00617_ The unstable cave ceiling collapses. 00618_ K-01 Serf collects debris. 00619_ D-53 Grenadier destroyed. 00622_ The unstable cave ceiling collapses. 00622_ K-01 Serf collects debris. 00624_ The unstable cave ceiling collapses. 00626_ K-01 Serf collects debris. 00660_ T-07 Excavator destroyed. 00670_ Grenade Launcher destroyed. 00672_ as-27873 destroyed. 00678_ Acquired 12 matter. 00683_ The unstable cave ceiling collapses. 00721_ Wheel destroyed. 00722_ Dropped Lgt. Ion Engine. 00723_ Dropped Hvy. Assault Rifle. Map ----- +----------------------------------------------------+ | ?????## #????????????????????? | | ??????# #????????????????????? | | ??????# ## #????????????????????? | | ??????# #### #????????????????????? | | ??????# #?# ##????????????????????? | | ??????# #### ##?????????????????????? | | ??????## #?#####??????????????????????? | | ??????# ##???????????????????????????? | | ??????# ! #???????????????????????????? | | ??????# % ##???????????????????????????? | | ??????# * #????????????????????????????? | | ??????## #????????????????????????????? | | ???????## #????????????????????????????? | | ????????## ##???????????????????????????? | | ?????????## ##??????????????????????????? | | ???######## #??????????????????????????? | | ??## #??????????????????????????? | | ??# ##??????????????????????????? | | ??# ##### ##???????????????????????????? | | ??## #???# #????????????????????????????? | | ???## ##### #####????????????????????????? | | ???## #????????????????????????? | | ???# ######### #????????????????????????? | | ???# #???????# ######## # ##??????????? | | ???# ##??????# ## a ??????????? | | ???# #####??# @* %""""??????????????? | | ???# ##?####[## !""""??????????????? | | ???## """ #????# #?????""??????????????? | | ????# """ ##???# #?????????????????????? | | ????# """ ##??# #?????????????????????? | | ????## #### #?????????????????????? | | ?????### #?????????????????????? | | ???????##### #######?????????????????????? | | ???????????####???????????????????????????? | | ??????????????????????????????????????????? | | ??????????????????????????????????????????? | | ??????????????????????????????????????????? | | | | | | | | | | | | | | | | | | | | | | | | | | | +----------------------------------------------------+ Best States ------------- Heat Dissipation 35 Energy Generation 14 Energy Capacity 250 Matter Stores 300 Matter Capacity 300 Sight Range 16 Terrain Scan Density 10 Evasion (%) 55 Item Schematics ----------------- None Robot Schematics ------------------ None Fabricated ------------ Nothing Alien Tech Used ----------------- None Achievements -------------- None Challenges ------------ None Game ------ Seed DeepSegregatorMediator Manual? 0 Play Time 00:12:40 Cumulative 215.8 hours Start 2022.06.03 @ 15:06:53 End 2022.06.03 @ 15:21:35 Sessions 1 Manual Loads 0 Difficulty Rogue Special Mode None Game No. 101 Rogue 94 Adventurer 0 Explorer 7 Win Type - Total 1 Types 0/0/1/0/0/0/0/0/0 Lore% 63 Gallery% 61 Achievement% 50 Wizard Run 0 Options --------- ASCII 0 Keyboard 0 Movement Mouse Keybinds 0 Fullscreen 1 Font 16/Cog Map View 76x50 Tactical HUD 1 Map Filters NONE Filters NONE Steam 1 RUN: 065224e2-8da9-4213-a7c8-0b14621fccce